fUSD/lending_fUSD_20250911
["ID","MTS","AMOUNT","RATE_DAILY","PERIOD"]
[384932066,1757627563639,-8723.99,0.00030136,7]
[384932067,1757627563648,-400.0,0.00030136,7]
[384932068,1757627563657,-413.57,0.00030136,7]
[384932069,1757627563666,-10846.33,0.00030136,7]
[384932070,1757627563675,-2723.99,0.00030136,7]
[384932071,1757627563685,-2416.16,0.00030136,7]
[384932072,1757627563694,-1588.95,0.00030136,7]
[384932073,1757627563703,-1251.69,0.00030136,7]
[384932074,1757627563713,-400.0,0.00030136,7]
[384932075,1757627563722,-3367.99,0.00030136,7]
[384932076,1757627563731,-1485.57,0.00030136,7]
[384932077,1757627563740,-571.98,0.00030136,7]
[384932078,1757627563749,-580.95,0.00030136,7]
[384932079,1757627563758,-1511.45,0.00030136,7]
[384932080,1757627563768,-1402.77,0.00030136,7]
[384932081,1757627563777,-400.0,0.00030136,7]
[384932082,1757627563786,-2512.68,0.00030136,7]
[384932083,1757627563795,-2129.92,0.00030136,7]
[384932084,1757627563805,-1100.85,0.00030136,7]
[384932085,1757627563814,-1468.07,0.00030136,7]
[384932086,1757627563824,-1235.68,0.00030136,7]
[384932087,1757627563833,-400.0,0.00030136,7]
[384932088,1757627563843,-400.0,0.00030136,7]
[384932089,1757627563852,-1148.27,0.00030136,7]
[384932090,1757627563861,-659.2,0.00030136,7]
[384932091,1757627563871,-677.06,0.00030136,7]
[384932092,1757627563880,-4042.54,0.00030136,7]
[384932093,1757627563890,-1478.86,0.00030136,7]
[384932094,1757627563899,-596.08,0.00030136,7]
[384932095,1757627564012,-3121.58,0.00030136,7]
[384932096,1757627564021,-1327.37,0.00030136,7]
[384932097,1757627564031,-2116.65,0.00030136,7]
[384932098,1757627564040,-412.03,0.00030136,7]
[384932099,1757627564049,-400.0,0.00030136,7]
[384932100,1757627564058,-1719.45,0.00030136,7]
[384932101,1757627564068,-1710.12,0.00030136,7]
[384932102,1757627564077,-1450.37,0.00030136,7]
[384932103,1757627564087,-1987.08,0.00030136,7]
[384932104,1757627564096,-1612.89,0.00030136,7]
[384932105,1757627564105,-513.59,0.00030136,7]
[384932106,1757627564114,-836.01,0.00030136,7]
[384932107,1757627564123,-3415.13,0.00030136,7]
[384932108,1757627564132,-1717.5,0.00030136,7]
[384932109,1757627564142,-660.1,0.00030136,7]
[384932110,1757627564151,-2173.97,0.00030136,7]
[384932111,1757627564160,-3404.31,0.00030136,7]
[384932112,1757627564169,-2122.67,0.00030136,7]
[384932113,1757627564179,-1824.59,0.00030136,7]
[384932114,1757627564188,-2940.84,0.00030136,7]
[384932115,1757627564197,-400.0,0.00030136,7]
[384932116,1757627564207,-2046.07,0.00030136,7]
[384932117,1757627564216,-466.30948799,0.00030136,7]
[384932118,1757627564225,-1664.51,0.00030136,7]
[384932119,1757627564235,-400.0,0.00030136,7]
[384932120,1757627564244,-2668.52,0.00030136,7]
[384932121,1757627564254,-1145.88,0.00030136,7]
[384932122,1757627564264,-400.0,0.00030136,7]
[384932123,1757627564274,-1418.74,0.00030136,7]
[384932124,1757627564283,-1033.62,0.00030136,7]
[384932125,1757627564293,-400.0,0.00030136,7]
[384932126,1757627564302,-857.22,0.00030136,7]
[384932127,1757627564312,-469.58356461,0.00030136,7]
[384932128,1757627564321,-400.0,0.00030136,7]
[384932129,1757627564331,-400.0,0.00030136,7]
[384932130,1757627564340,-1785.27,0.00030136,7]
[384932131,1757627564355,-1768.54,0.00030136,7]
[384932132,1757627564365,-1525.18,0.00030136,7]
[384932133,1757627564375,-3561.21,0.00030136,7]
[384932134,1757627564384,-412.28,0.00030136,7]
[384932135,1757627564394,-1709.68,0.00030136,7]
[384932136,1757627564405,-440.38,0.00030136,7]
[384932137,1757627564414,-2318.27,0.00030136,7]
[384932138,1757627564424,-1281.61,0.00030136,7]
[384932139,1757627564433,-2011.65,0.00030136,7]
[384932140,1757627564442,-1166.63,0.00030136,7]
[384932141,1757627564452,-746.18,0.00030136,7]
[384932142,1757627564461,-400.0,0.00030136,7]
[384932143,1757627564471,-400.0,0.00030136,7]
[384932144,1757627564480,-400.0,0.00030136,7]
[384932145,1757627564490,-1306.49,0.00030136,7]
[384932146,1757627564499,-1825.7,0.00030136,7]
[384932147,1757627564508,-762.39,0.00030136,7]
[384932148,1757627564517,-3800.69,0.00030136,7]
[384932149,1757627564526,-2183.28,0.00030136,7]
[384932150,1757627564535,-631.92,0.00030136,7]
[384932151,1757627564544,-2113.02,0.00030136,7]
[384932152,1757627564554,-412.34,0.00030136,7]
[384932153,1757627564563,-478.43,0.00030136,7]
[384932154,1757627564572,-658.91,0.00030136,7]
[384932155,1757627564581,-764.83,0.00030136,7]
[384932156,1757627564591,-2212.12,0.00030136,7]
[384932157,1757627564599,-400.0,0.00030136,7]
[384932158,1757627564608,-1409.6,0.00030136,7]
[384932159,1757627564617,-2621.3,0.00030136,7]
[384932160,1757627564626,-1935.52,0.00030136,7]
[384932161,1757627564636,-400.0,0.00030136,7]
[384932162,1757627564646,-792.93,0.00030136,7]
[384932163,1757627564656,-1641.57,0.00030136,7]
[384932164,1757627564665,-531.11573546,0.00030136,7]
[384932165,1757627564675,-2511.53,0.00030136,7]
[384932166,1757627564685,-415.19,0.00030136,7]
[384932167,1757627564695,-1999.25,0.00030136,7]
[384932168,1757627564704,-400.0,0.00030136,7]
[384932169,1757627564714,-935.63,0.00030136,7]
[384932170,1757627564723,-561.05,0.00030136,7]
[384932171,1757627564733,-1937.06,0.00030136,7]
[384932172,1757627564742,-622.55,0.00030136,7]
[384932173,1757627564752,-605.95,0.00030136,7]
[384932174,1757627564762,-625.67,0.00030136,7]
[384932175,1757627564772,-2434.87,0.00030136,7]
[384932176,1757627564782,-1967.02,0.00030136,7]
[384932177,1757627564792,-2064.83,0.00030136,7]
[384932178,1757627564802,-5081.16,0.00030136,7]
[384932179,1757627564811,-400.0,0.00030136,7]
[384932180,1757627564821,-2357.52,0.00030136,7]
[384932181,1757627564830,-1918.79,0.00030136,7]
[384932182,1757627564840,-688.97,0.00030136,7]
[384932183,1757627564850,-2563.41,0.00030136,7]
[384932184,1757627564860,-400.0,0.00030136,7]
[384932185,1757627564869,-400.0,0.00030136,7]
[384932186,1757627564879,-1782.99,0.00030136,7]
[384932187,1757627564889,-1378.05,0.00030136,7]
[384932188,1757627564899,-2353.03,0.00030136,7]
[384932189,1757627564909,-752.99,0.00030136,7]
[384932190,1757627564919,-400.0,0.00030136,7]
[384932191,1757627564930,-1193.85,0.00030136,7]
[384932192,1757627564940,-1178.69,0.00030136,7]
[384932193,1757627564950,-1935.24,0.00030136,7]
[384932194,1757627564960,-1221.61,0.00030136,7]
[384932195,1757627564971,-459.96,0.00030136,7]
[384932196,1757627564982,-2252.22,0.00030136,7]
[384932197,1757627564992,-735.02,0.00030136,7]
[384932198,1757627565002,-1279.89,0.00030136,7]
[384932199,1757627565012,-400.0,0.00030136,7]
[384932200,1757627565022,-2407.5,0.00030136,7]
[384932201,1757627565032,-2161.65,0.00030136,7]
[384932202,1757627565043,-1425.68,0.00030136,7]
[384932203,1757627565053,-1362.92,0.00030136,7]
[384932204,1757627565063,-1095.6,0.00030136,7]
[384932205,1757627565073,-2476.85,0.00030136,7]
[384932206,1757627565084,-1991.02,0.00030136,7]
[384932207,1757627565094,-2430.43,0.00030136,7]
[384932208,1757627565105,-465.81,0.00030136,7]
[384932209,1757627565115,-2085.01,0.00030136,7]
[384932210,1757627565125,-2781.72,0.00030136,7]
[384932211,1757627565135,-1977.7,0.00030136,7]
[384932212,1757627565145,-400.0,0.00030136,7]
[384932213,1757627565155,-2696.49,0.00030136,7]
[384932214,1757627565166,-430.58,0.00030136,7]
[384932215,1757627565176,-3938.86,0.00030136,7]
[384932216,1757627565187,-2712.62,0.00030136,7]
[384932217,1757627565197,-4392.91,0.00030136,7]
[384932218,1757627565207,-1492.88,0.00030136,7]
[384932219,1757627565217,-400.0,0.00030136,7]
[384932220,1757627565228,-1464.34,0.00030136,7]
[384932221,1757627565238,-591.66,0.00030136,7]
[384932222,1757627565248,-400.0,0.00030136,7]
[384932223,1757627565259,-400.0,0.00030136,7]
[384932224,1757627565270,-666.94,0.00030136,7]
[384932225,1757627565280,-1806.44,0.00030136,7]
[384932226,1757627565291,-1981.45,0.00030136,7]
[384932227,1757627565301,-2436.65,0.00030136,7]
[384932228,1757627565311,-3388.27,0.00030136,7]
[384932229,1757627565322,-406.24,0.00030136,7]
[384932230,1757627565332,-881.67,0.00030136,7]
[384932231,1757627565343,-1172.06,0.00030136,7]
[384932232,1757627565356,-780.5,0.00030136,7]
[384932233,1757627565367,-554.15,0.00030136,7]
[384932234,1757627565378,-4294.22,0.00030136,7]
[384932235,1757627565388,-2452.85,0.00030136,7]
[384932236,1757627565399,-438.53,0.00030136,7]
[384932237,1757627565410,-604.66,0.00030136,7]
[384932238,1757627565421,-534.25,0.00030136,7]
[384932239,1757627565430,-400.0,0.00030136,7]
[384932240,1757627565441,-2886.24,0.00030136,7]
[384932241,1757627565451,-3147.12,0.00030136,7]
[384932242,1757627565461,-400.0,0.00030136,7]
[384932243,1757627565471,-2500.66,0.00030136,7]
[384932244,1757627565483,-1752.06,0.00030136,7]
[384932245,1757627565494,-1536.25,0.00030136,7]
[384932246,1757627565504,-3110.75,0.00030136,7]
[384932247,1757627565515,-3514.52,0.00030136,7]
[384932248,1757627565525,-1998.85,0.00030136,7]
[384932249,1757627565535,-851.92,0.00030136,7]
[384932250,1757627565545,-1639.17,0.00030136,7]
[384932251,1757627565555,-2234.85,0.00030136,7]
[384932252,1757627565565,-2407.64,0.00030136,7]
[384932253,1757627565577,-400.0,0.00030136,7]
[384932254,1757627565588,-1046.34,0.00030136,7]
[384932255,1757627565598,-1220.02,0.00030136,7]
[384932256,1757627565608,-2770.33,0.00030136,7]
[384932257,1757627565618,-482.39,0.00030136,7]
[384932258,1757627565628,-436.15,0.00030136,7]
[384932259,1757627565638,-1846.46,0.00030136,7]
[384932260,1757627565648,-400.0,0.00030136,7]
[384932261,1757627565658,-400.0,0.00030136,7]
[384932262,1757627565668,-2184.88,0.00030136,7]
[384932263,1757627565678,-1730.33,0.00030136,7]
[384932264,1757627565688,-1786.28,0.00030136,7]
[384932265,1757627565698,-1957.68,0.00030136,7]
[384932266,1757627565708,-1265.01,0.00030136,7]
[384932267,1757627565718,-407.19,0.00030136,7]
[384932268,1757627565729,-688.3,0.00030136,7]
[384932269,1757627565740,-2703.11,0.00030136,7]
[384932270,1757627565751,-678.34,0.00030136,7]
[384932271,1757627565772,-2568.73,0.00030136,7]
[384932272,1757627565788,-3106.86,0.00030136,7]
[384932273,1757627565808,-1591.84,0.00030136,7]
[384932274,1757627565826,-2512.36,0.00030136,7]
[384932275,1757627565841,-423.35,0.00030136,7]
[384932276,1757627565861,-2358.62,0.00030136,7]
[384932277,1757627565879,-655.76,0.00030136,7]
[384932278,1757627565899,-655.88,0.00030136,7]
[384932279,1757627565916,-1989.93,0.00030136,7]
[384932280,1757627565935,-400.0,0.00030136,7]
[384932281,1757627565953,-6625.15,0.00030136,7]
[384932282,1757627565967,-683.345,0.00030136,7]
[384932283,1757627565985,-400.0,0.00030136,7]
[384932284,1757627565998,-1565.73,0.00030136,7]
[384932285,1757627566015,-2433.07,0.00030136,7]
[384932286,1757627566028,-400.0,0.00030136,7]
[384932287,1757627566047,-2320.6,0.00030136,7]
[384932288,1757627566062,-1949.62,0.00030136,7]
[384932289,1757627566077,-400.0,0.00030136,7]
[384932290,1757627566092,-2218.78,0.00030136,7]
[384932291,1757627566107,-3743.48,0.00030136,7]
[384932292,1757627566123,-581.88,0.00030136,7]
[384932293,1757627566139,-1700.41,0.00030136,7]
[384932294,1757627566153,-601.83,0.00030136,7]
[384932295,1757627566168,-350.31444805,0.00030136,7]
[384932296,1757627566183,-2332.54,0.00030136,7]
[384932297,1757627566199,-726.15,0.00030136,7]
[384932298,1757627566216,-2249.08,0.00030136,7]
[384932299,1757627566234,-2742.88,0.00030136,7]
[384932300,1757627566249,-877.79,0.00030136,7]
[384932301,1757627566265,-2125.99,0.00030136,7]
[384932302,1757627566284,-400.0,0.00030136,7]
[384932303,1757627566300,-400.0,0.00030136,7]
[384932304,1757627566315,-1691.78,0.00030136,7]
[384932305,1757627566329,-2192.92,0.00030136,7]
[384932306,1757627566347,-2438.57,0.00030136,7]
[384932307,1757627566362,-1723.17,0.00030136,7]
[384932308,1757627566378,-2371.58,0.00030136,7]
[384932309,1757627566395,-882.4,0.00030136,7]
[384932310,1757627566410,-2985.19,0.00030136,7]
[384932311,1757627566427,-2972.96,0.00030136,7]
[384932312,1757627566442,-849.58,0.00030136,7]
[384932313,1757627566458,-512.39,0.00030136,7]
[384932314,1757627566473,-3150.88,0.00030136,7]
[384932315,1757627566488,-2678.71,0.00030136,7]
[384932316,1757627566505,-1003.52,0.00030136,7]
[384932317,1757627566520,-764.35,0.00030136,7]
[384932318,1757627566535,-2578.26,0.00030136,7]
[384932319,1757627566550,-2234.94,0.00030136,7]
[384932320,1757627566565,-1462.94,0.00030136,7]
[384932321,1757627566581,-1828.11,0.00030136,7]
[384932322,1757627566596,-470.08,0.00030136,7]
[384932323,1757627566612,-1307.56,0.00030136,7]
[384932324,1757627566627,-400.0,0.00030136,7]
[384932325,1757627566643,-1772.99,0.00030136,7]
[384932326,1757627566658,-2097.33,0.00030136,7]
[384932327,1757627566673,-933.0,0.00030136,7]
[384932328,1757627566690,-952.28,0.00030136,7]
[384932329,1757627566705,-1662.68,0.00030136,7]
[384932330,1757627566720,-610.96,0.00030136,7]
[384932331,1757627566735,-7841.89,0.00030136,7]
[384932332,1757627566751,-400.0,0.00030136,7]
[384932333,1757627566766,-400.0,0.00030136,7]
[384932334,1757627566782,-1604.78,0.00030136,7]
[384932335,1757627566797,-1587.28,0.00030136,7]
[384932336,1757627566813,-2174.86,0.00030136,7]
[384932337,1757627566828,-11061.06,0.00030136,7]
[384932338,1757627566844,-1272.03,0.00030136,7]
[384932339,1757627566859,-400.0,0.00030136,7]
[384932340,1757627566874,-596.32,0.00030136,7]
[384932341,1757627566888,-565.46,0.00030136,7]
[384932342,1757627566904,-2131.53,0.00030136,7]
[384932343,1757627566919,-2498.42,0.00030136,7]
[384932344,1757627566933,-6488.57,0.00030136,7]
[384932345,1757627566948,-5525.7,0.00030136,7]
[384932346,1757627566963,-1601.69,0.00030136,7]
[384932347,1757627566979,-455.17,0.00030136,7]
[384932348,1757627566994,-1668.79,0.00030136,7]
[384932349,1757627567008,-1352.16,0.00030136,7]
[384932350,1757627567023,-11877.61,0.00030136,7]
[384932351,1757627567037,-2986.7,0.00030136,7]
[384932352,1757627567053,-400.0,0.00030136,7]
[384932353,1757627567069,-400.0,0.00030136,7]
[384932354,1757627567084,-2328.89,0.00030136,7]
[384932355,1757627567099,-4724.84,0.00030136,7]
[384932356,1757627567113,-400.0,0.00030136,7]
[384932357,1757627567127,-2071.12,0.00030136,7]
[384932358,1757627567141,-3292.32,0.00030136,7]
[384932359,1757627567155,-400.0,0.00030136,7]
[384932360,1757627567170,-400.0,0.00030136,7]
[384932361,1757627567186,-657.95,0.00030136,7]
[384932362,1757627567201,-2017.2,0.00030136,7]
[384932363,1757627567215,-2362.15,0.00030136,7]
[384932364,1757627567229,-1981.94,0.00030136,7]
[384932365,1757627567244,-914.7,0.00030136,7]
[384932366,1757627567258,-710.2,0.00030136,7]
[384932367,1757627567272,-847.93,0.00030136,7]
[384932368,1757627567287,-1045.52,0.00030136,7]
[384932369,1757627567302,-752.72,0.00030136,7]
[384932370,1757627567317,-2021.8,0.00030136,7]
[384932371,1757627567334,-2367.19,0.00030136,7]
[384932372,1757627567351,-1204.45,0.00030136,7]
[384932373,1757627567376,-1922.67,0.00030136,7]
[384932374,1757627567401,-2147.9,0.00030136,7]
[384932375,1757627567417,-400.0,0.00030136,7]
[384932376,1757627567433,-737.4,0.00030136,7]
[384932377,1757627567447,-610.19,0.00030136,7]
[384932378,1757627567462,-2005.27,0.00030136,7]
[384932379,1757627567478,-2282.8,0.00030136,7]
[384932380,1757627567493,-868.86,0.00030136,7]
[384932381,1757627567508,-2067.86,0.00030136,7]
[384932382,1757627567523,-1662.86,0.00030136,7]
[384932383,1757627567537,-339.78,0.00030136,7]
[384932384,1757627567551,-581.46,0.00030136,7]
[384932385,1757627567565,-973.3,0.00030136,7]
[384932386,1757627567579,-2104.81,0.00030136,7]
[384932387,1757627567595,-901.74,0.00030136,7]
[384932388,1757627567609,-3042.61,0.00030136,7]
[384932389,1757627567624,-633.32,0.00030136,7]
[384932390,1757627567639,-1564.75,0.00030136,7]
[384932391,1757627567654,-406.9,0.00030136,7]
[384932392,1757627567668,-2798.29,0.00030136,7]
[384932393,1757627567683,-473.92,0.00030136,7]
[384932394,1757627567698,-1232.08,0.00030136,7]
[384932395,1757627567713,-825.48,0.00030136,7]
[384932396,1757627567727,-1649.61,0.00030136,7]
[384932397,1757627567741,-400.0,0.00030136,7]
[384932398,1757627567756,-401.49,0.00030136,7]
[384932399,1757627567771,-493.86,0.00030136,7]
[384932400,1757627567785,-2428.81,0.00030136,7]
[384932401,1757627567799,-545.25,0.00030136,7]
[384932402,1757627567814,-3292.07,0.00030136,7]
[384932403,1757627567828,-400.0,0.00030136,7]
[384932404,1757627567843,-1770.26,0.00030136,7]
[384932405,1757627567866,-400.0,0.00030136,7]
[384932406,1757627567879,-400.0,0.00030136,7]
[384932407,1757627567894,-1537.35,0.00030136,7]
[384932408,1757627567909,-575.7,0.00030136,7]
[384932409,1757627567924,-2235.0,0.00030136,7]
[384932410,1757627567939,-4315.46,0.00030136,7]
[384932411,1757627567953,-2043.23,0.00030136,7]
[384932412,1757627567968,-542.72,0.00030136,7]
[384932413,1757627567982,-497.85,0.00030136,7]
[384932414,1757627567996,-774.82,0.00030136,7]
[384932415,1757627568011,-2030.44,0.00030136,7]
[384932416,1757627568025,-444.49,0.00030136,7]
[384932417,1757627568040,-400.0,0.00030136,7]
[384932418,1757627568055,-2457.19,0.00030136,7]
[384932419,1757627568069,-150.0,0.00030136,2]
[384932420,1757627568084,-400.0,0.00030136,7]
[384932421,1757627568099,-2221.42,0.00030136,7]
[384932422,1757627568114,-2267.83,0.00030136,7]
[384932423,1757627568130,-400.0,0.00030136,7]
[384932424,1757627568144,-400.0,0.00030136,7]
[384932425,1757627568160,-1381.33,0.00030136,7]
[384932426,1757627568175,-400.0,0.00030136,7]
[384932427,1757627568189,-400.0,0.00030136,7]
[384932428,1757627568205,-977.79,0.00030136,7]
[384932429,1757627568221,-2044.64,0.00030136,7]
[384932430,1757627568237,-596.22,0.00030136,7]
[384932431,1757627568253,-400.0,0.00030136,7]
[384932432,1757627568268,-1597.41,0.00030136,7]
[384932433,1757627568283,-1990.61,0.00030136,7]
[384932434,1757627568298,-523.75001327,0.00030136,7]
[384932435,1757627568313,-1787.37,0.00030136,7]
[384932436,1757627568328,-500.0,0.00030137,7]
[384932437,1757627568344,-500.0,0.00030137,7]
[384932438,1757627568361,-500.0,0.00030137,7]
[384932439,1757627568375,-584.32052856,0.00030137,7]
[384932440,1757627568390,-500.0,0.00030137,7]
[384932441,1757627568406,-3492.0,0.00030137,7]
[384932442,1757627568420,-3236.4,0.00030137,30]
[384932443,1757627568434,-1448.40914106,0.00030137,120]
[384932444,1757627568449,-1163.05803924,0.00030137,120]
[384932445,1757627568463,-2000.0,0.00030137,120]
[384932446,1757627568479,-500.0,0.0003014,7]
[384932447,1757627568848,-415.0,0.00030146,30]
[384932448,1757627568874,-500.0,0.00030167,7]
[384932449,1757627568883,-350.0,0.00030168,5]
[384932450,1757627568892,-1200.0,0.0003019,7]
[384932451,1757627568902,-500.0,0.00030255,7]
[384932452,1757627568911,-500.0,0.00030298,7]
[384932453,1757627568921,-500.0,0.00030301,7]
[384932454,1757627568930,-500.0,0.00030311,7]
[384932455,1757627568940,-174.6,0.00030356,2]
[384932456,1757627568949,-1308.73,0.00030356,2]
[384932457,1757627568959,-230.56,0.00030356,2]
[384932458,1757627568969,-455.9,0.00030356,2]
[384932459,1757627568979,-1200.0,0.00030376,7]
[384932460,1757627568988,-250.0,0.000304,7]
[384932461,1757627568998,-254.6,0.000304,7]
[384932462,1757627569007,-2430.85,0.0003041,7]
[384932463,1757627569017,-537.34,0.0003041,7]
[384932464,1757627569026,-400.0,0.0003041,7]
[384932465,1757627569035,-436.24,0.0003041,7]
[384932466,1757627569044,-622.97,0.0003041,7]
[384932467,1757627569053,-400.0,0.0003041,7]
[384932468,1757627569062,-602.77,0.0003041,7]
[384932469,1757627569071,-1543.01,0.0003041,7]
[384932470,1757627569081,-400.0,0.0003041,7]
[384932471,1757627569091,-502.36,0.0003041,7]
[384932472,1757627569100,-607.91,0.0003041,7]
[384932473,1757627569109,-474.04,0.0003041,7]
[384932474,1757627569118,-422.29,0.0003041,7]
[384932475,1757627569127,-521.3,0.0003041,7]
[384932476,1757627569136,-578.72,0.0003041,7]
[384932477,1757627569145,-1554.85,0.0003041,7]
[384932478,1757627569154,-400.0,0.0003041,7]
[384932479,1757627569163,-400.0,0.0003041,7]
[384932480,1757627569173,-1824.84,0.0003041,7]
[384932481,1757627569183,-1088.02,0.0003041,7]
[384932482,1757627569193,-1205.28,0.0003041,7]
[384932483,1757627569202,-432.28,0.0003041,7]
[384932484,1757627569211,-508.59,0.0003041,7]
[384932485,1757627569220,-400.0,0.0003041,7]
[384932486,1757627569230,-832.75,0.0003041,7]
[384932487,1757627569239,-400.0,0.0003041,7]
[384932488,1757627569248,-904.85,0.0003041,7]
[384932489,1757627569257,-685.8,0.0003041,7]
[384932490,1757627569267,-517.06,0.0003041,7]
[384932491,1757627569276,-1008.26,0.0003041,7]
[384932492,1757627569286,-1113.46,0.0003041,7]
[384932493,1757627569295,-655.45,0.0003041,7]
[384932494,1757627569305,-400.0,0.0003041,7]
[384932495,1757627569316,-593.77,0.0003041,7]
[384932496,1757627569326,-807.62,0.0003041,7]
[384932497,1757627569335,-738.23,0.0003041,7]
[384932498,1757627569344,-567.18,0.0003041,7]
[384932499,1757627569357,-464.24,0.0003041,7]
[384932500,1757627569367,-738.23,0.0003041,7]
[384932501,1757627569376,-400.0,0.0003041,7]
[384932502,1757627569386,-400.0,0.0003041,7]
[384932503,1757627569395,-588.76,0.0003041,7]
[384932504,1757627569406,-607.0,0.0003041,7]
[384932505,1757627569415,-595.56,0.0003041,7]
[384932506,1757627569424,-541.07,0.0003041,7]
[384932507,1757627569434,-439.31,0.0003041,7]
[384932508,1757627569443,-400.0,0.0003041,7]
[384932509,1757627569453,-995.46,0.0003041,7]
[384932510,1757627569462,-1889.23,0.0003041,7]
[384932511,1757627569473,-400.0,0.0003041,7]
[384932512,1757627569482,-1159.7,0.0003041,7]
[384932513,1757627569492,-404.78,0.0003041,7]
[384932514,1757627569501,-400.0,0.0003041,7]
[384932515,1757627569510,-892.23,0.0003041,7]
[384932516,1757627569519,-400.0,0.0003041,7]
[384932517,1757627569528,-568.18,0.0003041,7]
[384932518,1757627569537,-403.03,0.0003041,7]
[384932519,1757627569549,-1401.18,0.0003041,7]
[384932520,1757627569560,-458.22,0.0003041,7]
[384932521,1757627569569,-1506.44,0.0003041,7]
[384932522,1757627569579,-400.0,0.0003041,7]
[384932523,1757627569588,-653.84,0.0003041,7]
[384932524,1757627569597,-1579.45,0.0003041,7]
[384932525,1757627569607,-596.11,0.0003041,7]
[384932526,1757627569616,-614.15,0.0003041,7]
[384932527,1757627569626,-400.0,0.0003041,7]
[384932528,1757627569635,-400.0,0.0003041,7]
[384932529,1757627569645,-1013.76,0.0003041,7]
[384932530,1757627569654,-200.96857399,0.0003041,7]
[384932531,1757627569664,-316.58546302,0.0003041,7]
[384932532,1757627569673,-1714.22,0.0003041,7]
[384932533,1757627569683,-517.47,0.0003041,7]
[384932534,1757627569692,-1096.07,0.0003041,7]
[384932535,1757627569701,-400.0,0.0003041,7]
[384932536,1757627569711,-1253.03,0.0003041,7]
[384932537,1757627569720,-1145.97,0.0003041,7]
[384932538,1757627569729,-1745.67,0.0003041,7]
[384932539,1757627569738,-400.0,0.0003041,7]
[384932540,1757627569747,-727.42,0.0003041,7]
[384932541,1757627569757,-400.0,0.0003041,7]
[384932542,1757627569766,-583.39,0.0003041,7]
[384932543,1757627569775,-400.0,0.0003041,7]
[384932544,1757627569784,-400.0,0.0003041,7]
[384932545,1757627569793,-576.54,0.0003041,7]
[384932546,1757627569802,-1541.62,0.0003041,7]
[384932547,1757627569811,-921.85,0.0003041,7]
[384932548,1757627569820,-426.23,0.0003041,7]
[384932549,1757627569829,-1433.65,0.0003041,7]
[384932550,1757627569839,-2304.65,0.0003041,7]
[384932551,1757627569847,-1278.47,0.0003041,7]
[384932552,1757627569857,-400.0,0.0003041,7]
[384932553,1757627569866,-506.5,0.0003041,7]
[384932554,1757627569875,-1307.66,0.0003041,7]
[384932555,1757627569884,-400.0,0.0003041,7]
[384932556,1757627569893,-1245.35,0.0003041,7]
[384932557,1757627569903,-1371.0,0.0003041,7]
[384932558,1757627569911,-400.0,0.0003041,7]
[384932559,1757627569920,-400.0,0.0003041,7]
[384932560,1757627569930,-506.24,0.0003041,7]
[384932561,1757627569940,-1050.18,0.0003041,7]
[384932562,1757627569949,-400.0,0.0003041,7]
[384932563,1757627569959,-400.0,0.0003041,7]
[384932564,1757627569968,-1616.64,0.0003041,7]
[384932565,1757627569978,-1120.7,0.0003041,7]